Workbook

Sheet Classsificació
A1: COPA BOTIFARRA SANT MAURE'18
A2: 12 Gener 2018
L4: CLASSIFICACIÓ | P4: RONDA 1 | S4: RONDA 2 | V4: RONDA 3 | Y4: RONDA 4 | AB4: RONDA 5 | AE4: FINAL
B5: Equip | C5: Jugador | D5: Partits | L5: Premi | M5: Diferència | N5: Favor | O5: Contra | P5: Premi | Q5: Favor | R5: Contra | S5: Premi | T5: Favor | U5: Contra | V5: Premi | W5: Favor | X5: Contra | Y5: Premi | Z5: Favor | AA5: Contra | AB5: Premi | AC5: Favor | AD5: Contra | AE5: Premi | AF5: Favor | AG5: Contra | AR5: RONDA 1 | AT5: RONDA 2 | AV5: RONDA 3 | AX5: RONDA 4 | AZ5: RONDA 5 | BC5: RONDA 1 | BE5: RONDA 2 | BG5: RONDA 3 | BI5: RONDA 4 | BK5: RONDA 5
A6: 1 | B6: 1 | C6: Jordi Marzá | J6: =RAND() -> 0.5266052621 | K6: =+N6+J6 -> 274.5266053 | L6: =+P6+S6+V6+Y6+AB6+AE6 -> 15 | M6: =+N6-O6 -> 116 | N6: =+Q6+T6+W6+Z6+AC6+AF6 -> 274 | O6: =+R6+U6+X6+AA6+AD6+AG6 -> 158 | P6: 3 | Q6: 60 | R6: 38 | S6: 3 | T6: 61 | U6: 20 | V6: 0 | W6: 5 | X6: 15 | Y6: 3 | Z6: 64 | AA6: 48 | AB6: 3 | AC6: 38 | AD6: 14 | AE6: 3 | AF6: 46 | AG6: 23 | AI6: 2 | AJ6: =+AI6 -> 2 | AK6: =+AI7 -> 1 | AR6: 16 | AS6: 1 | AT6: 11 | AU6: 1 | AV6: 11 | AW6: 2 | AX6: 11 | AY6: 5 | AZ6: 2 | BA6: 12 | BC6: =+AR6*100+AS6 -> 1601 | BD6: =+AS6*100+AR6 -> 116 | BE6: =+AT6*100+AU6 -> 1101 | BF6: =+AU6*100+AT6 -> 111 | BG6: =+AV6*100+AW6 -> 1102 | BH6: =+AW6*100+AV6 -> 211 | BI6: =+AX6*100+AY6 -> 1105 | BJ6: =+AY6*100+AX6 -> 511 | BK6: =+AZ6*100+BA6 -> 212 | BL6: =+BA6*100+AZ6 -> 1202
A7: =1+A6 -> 2 | B7: 2 | C7: Jaume Llobet | J7: 0.8853205462 | K7: 237.8853205 | L7: 15 | M7: 92 | N7: 237 | O7: 145 | P7: 3 | Q7: 36 | R7: 15 | S7: 3 | T7: 62 | U7: 16 | V7: 3 | W7: 15 | X7: 5 | Y7: 3 | Z7: 64 | AA7: 48 | AB7: 0 | AC7: 14 | AD7: 38 | AE7: 3 | AF7: 46 | AG7: 23 | AI7: 1 | AJ7: =+AI8 -> 11 | AK7: =+AI9 -> 20 | AR7: 3 | AS7: 24 | AT7: 9 | AU7: 16 | AV7: 1 | AW7: 22 | AX7: 2 | AY7: 1 | AZ7: 1 | BA7: 10 | BC7: =+AR7*100+AS7 -> 324 | BD7: =+AS7*100+AR7 -> 2403 | BE7: =+AT7*100+AU7 -> 916 | BF7: =+AU7*100+AT7 -> 1609 | BG7: =+AV7*100+AW7 -> 122 | BH7: =+AW7*100+AV7 -> 2201 | BI7: =+AX7*100+AY7 -> 201 | BJ7: =+AY7*100+AX7 -> 102 | BK7: =+AZ7*100+BA7 -> 110 | BL7: =+BA7*100+AZ7 -> 1001
A8: =1+A7 -> 3 | B8: 11 | C8: Josefina Bacardit | J8: 0.6954201439 | K8: 203.6954201 | L8: 12 | M8: 53 | N8: 203 | O8: 150 | P8: 3 | Q8: 36 | R8: 7 | S8: 3 | T8: 61 | U8: 20 | V8: 3 | W8: 15 | X8: 5 | Y8: 0 | Z8: 48 | AA8: 64 | AB8: 3 | AC8: 20 | AD8: 8 | AE8: 0 | AF8: 23 | AG8: 46 | AI8: 11 | AJ8: =+AI10 -> 12 | AK8: =+AI11 -> 10 | AR8: 23 | AS8: 17 | AT8: 21 | AU8: 12 | AV8: 20 | AW8: 19 | AX8: 10 | AY8: 3 | AZ8: 20 | BA8: 11 | BC8: 2317 | BD8: 1723 | BE8: =+AT8*100+AU8 -> 2112 | BF8: =+AU8*100+AT8 -> 1221 | BG8: =+AV8*100+AW8 -> 2019 | BH8: =+AW8*100+AV8 -> 1920 | BI8: =+AX8*100+AY8 -> 1003 | BJ8: =+AY8*100+AX8 -> 310 | BK8: =+AZ8*100+BA8 -> 2011 | BL8: =+BA8*100+AZ8 -> 1120
A9: 4 | B9: 20 | C9: Fina Castells | J9: 0.6141353353 | K9: 128.6141353 | L9: 12 | M9: -12 | N9: 128 | O9: 140 | P9: 3 | Q9: 25 | R9: 16 | S9: 3 | T9: 27 | U9: 10 | V9: 0 | W9: 12 | X9: 45 | Y9: 3 | Z9: 21 | AA9: 15 | AB9: 3 | AC9: 20 | AD9: 8 | AE9: 0 | AF9: 23 | AG9: 46 | AI9: 20 | AJ9: =+AI12 -> 22 | AK9: =+AI13 -> 3 | AR9: 9 | AS9: 11 | AT9: 2 | AU9: 22 | AV9: 5 | AW9: 10 | AX9: 22 | AY9: 25 | AZ9: 22 | BA9: 3 | BC9: =+AR9*100+AS9 -> 911 | BD9: =+AS9*100+AR9 -> 1109 | BE9: =+AT9*100+AU9 -> 222 | BF9: =+AU9*100+AT9 -> 2202 | BG9: =+AV9*100+AW9 -> 510 | BH9: =+AW9*100+AV9 -> 1005 | BI9: =+AX9*100+AY9 -> 2225 | BJ9: =+AY9*100+AX9 -> 2522 | BK9: =+AZ9*100+BA9 -> 2203 | BL9: =+BA9*100+AZ9 -> 322
A10: 5 | B10: 10 | C10: Mayjo Nevado | J10: 0.5962241454 | K10: 189.5962241 | L10: 11 | M10: 75 | N10: 189 | O10: 114 | P10: 0 | Q10: 15 | R10: 36 | S10: 3 | T10: 72 | U10: 33 | V10: 3 | W10: 45 | X10: 12 | Y10: 2 | Z10: 19 | AA10: 19 | AB10: 3 | AC10: 38 | AD10: 14 | AI10: 12 | AJ10: =+AI14 -> 25 | AK10: =+AI15 -> 5 | AR10: 19 | AS10: 15 | AT10: 25 | AU10: 4 | AV10: 3 | AW10: 25 | AX10: 20 | AY10: 12 | AZ10: 25 | BA10: 9 | BC10: =+AR10*100+AS10 -> 1915 | BD10: =+AS10*100+AR10 -> 1519 | BE10: =+AT10*100+AU10 -> 2504 | BF10: =+AU10*100+AT10 -> 425 | BG10: =+AV10*100+AW10 -> 325 | BH10: =+AW10*100+AV10 -> 2503 | BI10: =+AX10*100+AY10 -> 2012 | BJ10: =+AY10*100+AX10 -> 1220 | BK10: =+AZ10*100+BA10 -> 2509 | BL10: =+BA10*100+AZ10 -> 925
A11: 6 | B11: 25 | C11: Manel Vilavecchia | J11: 0.7939919582 | K11: 101.793992 | L11: 11 | M11: 21 | N11: 101 | O11: 80 | P11: 3 | Q11: 25 | R11: 16 | S11: 0 | T11: 10 | U11: 27 | V11: 3 | W11: 22 | X11: 9 | Y11: 2 | Z11: 19 | AA11: 19 | AB11: 3 | AC11: 25 | AD11: 9 | AI11: 10 | AJ11: =+AI16 -> 9 | AK11: =+AI17 -> 21 | AR11: 12 | AS11: 22 | AT11: 20 | AU11: 5 | AV11: 23 | AW11: 9 | AX11: 4 | AY11: 19 | AZ11: 5 | BA11: 21 | BC11: =+AR11*100+AS11 -> 1222 | BD11: =+AS11*100+AR11 -> 2212 | BE11: 2005 | BF11: 520 | BG11: 2309 | BH11: 923 | BI11: 419 | BJ11: 1904 | BK11: 521 | BL11: 2105
A12: 7 | B12: 9 | C12: Satur Cid | J12: 0.4531926113 | K12: 134.4531926 | L12: 9 | M12: 6 | N12: 134 | O12: 128 | P12: 3 | Q12: 36 | R12: 7 | S12: 0 | T12: 20 | U12: 61 | V12: 0 | W12: 9 | X12: 22 | Y12: 3 | Z12: 44 | AA12: 29 | AB12: 3 | AC12: 25 | AD12: 9 | AI12: 22 | AJ12: =+AI18 -> 7 | AK12: =+AI19 -> 4 | AR12: 21 | AS12: 2 | AT12: 19 | AU12: 10 | AV12: 16 | AW12: 21 | AX12: 23 | AY12: 16 | AZ12: 7 | BA12: 4 | BC12: 2102 | BD12: 221 | BE12: 1910 | BF12: 1019 | BG12: 1621 | BH12: 2116 | BI12: 2316 | BJ12: 1623 | BK12: 704 | BL12: 407
A13: 8 | B13: 7 | C13: Marc Vidal | J13: 0.193409229 | K13: 172.1934092 | L13: 9 | M13: -13 | N13: 172 | O13: 185 | P13: 0 | Q13: 15 | R13: 36 | S13: 0 | T13: 33 | U13: 72 | V13: 3 | W13: 44 | X13: 40 | Y13: 3 | Z13: 36 | AA13: 15 | AB13: 3 | AC13: 44 | AD13: 22 | AI13: 3 | AJ13: =+AI20 -> 19 | AK13: =+AI21 -> 24 | AR13: 10 | AS13: 7 | AT13: 15 | AU13: 7 | AV13: 12 | AW13: 4 | AX13: 9 | AY13: 21 | AZ13: 19 | BA13: 24 | BC13: 1007 | BD13: 710 | BE13: 1507 | BF13: 715 | BG13: 1204 | BH13: 412 | BI13: 921 | BJ13: 2109 | BK13: 1924 | BL13: 2419
A14: 9 | B14: 12 | C14: Joan Carles Conesa | J14: 0.5978208318 | K14: 97.59782083 | L14: 9 | M14: -40 | N14: 97 | O14: 137 | P14: 3 | Q14: 25 | R14: 15 | S14: 0 | T14: 16 | U14: 62 | V14: 3 | W14: 21 | X14: 7 | Y14: 3 | Z14: 21 | AA14: 15 | AB14: 0 | AC14: 14 | AD14: 38 | AI14: 25 | AJ14: =+AI22 -> 23 | AK14: =+AI23 -> 16 | AR14: 4 | AS14: 5 | AT14: 3 | AU14: 23 | AV14: 24 | AW14: 15 | AX14: 17 | AY14: 15 | AZ14: 23 | BA14: 15 | BC14: 405 | BD14: 504 | BE14: 323 | BF14: 2303 | BG14: 2415 | BH14: 1524 | BI14: 1715 | BJ14: 1517 | BK14: 2315 | BL14: 1523
A15: 10 | B15: 22 | C15: Manel Pérez | J15: 0.9295731764 | K15: 119.9295732 | L15: 8 | M15: 34 | N15: 119 | O15: 85 | P15: 3 | Q15: 25 | R15: 15 | S15: 3 | T15: 62 | U15: 16 | V15: 0 | W15: 5 | X15: 15 | Y15: 2 | Z15: 19 | AA15: 19 | AB15: 0 | AC15: 8 | AD15: 20 | AI15: 5 | AJ15: =+AI24 -> 17 | AK15: =+AI25 -> 15 | AR15: 20 | AS15: 25 | AT15: 24 | AU15: 17 | AV15: 17 | AW15: 7 | AX15: 7 | AY15: 24 | AZ15: 16 | BA15: 17 | BC15: 2025 | BD15: 2520 | BE15: 2417 | BF15: 1724 | BG15: 1707 | BH15: 717 | BI15: 724 | BJ15: 2407 | BK15: 1617 | BL15: 1716
A16: 11 | B16: 4 | C16: Mercè Marinel·lo | J16: 0.3924026903 | K16: 106.3924027 | L16: 8 | M16: 4 | N16: 106 | O16: 102 | P16: 1 | Q16: 16 | R16: 25 | S16: 0 | T16: 10 | U16: 27 | V16: 3 | W16: 21 | X16: 7 | Y16: 1 | Z16: 15 | AA16: 21 | AB16: 3 | AC16: 44 | AD16: 22 | AI16: 9 | AJ16: 2 | AK16: 12 | BC16: 0 | BD16: 0 | BE16: 0 | BF16: 0 | BG16: 0 | BH16: 0 | BI16: 0 | BJ16: 0 | BK16: 0 | BL16: 0
A17: 12 | B17: 3 | C17: Núria Roca | J17: 0.3761300743 | K17: 139.3761301 | L17: 8 | M17: 0 | N17: 139 | O17: 139 | P17: 0 | Q17: 38 | R17: 60 | S17: 3 | T17: 52 | U17: 31 | V17: 3 | W17: 22 | X17: 9 | Y17: 2 | Z17: 19 | AA17: 19 | AB17: 0 | AC17: 8 | AD17: 20 | AI17: 21 | AJ17: 1 | AK17: 10 | AM17: =+AJ16 -> 2 | AN17: =+AK16 -> 12 | AO17: =+AJ17 -> 1 | AP17: =+AK17 -> 10 | BC17: 0 | BD17: 0 | BE17: 0 | BF17: 0 | BG17: 0 | BH17: 0 | BI17: 0 | BJ17: 0 | BK17: 0 | BL17: 0
A18: 13 | B18: 5 | C18: Josep Mª Grau | J18: 0.9599249605 | K18: 145.959925 | L18: 7 | M18: 9 | N18: 145 | O18: 136 | P18: 1 | Q18: 16 | R18: 25 | S18: 3 | T18: 27 | U18: 10 | V18: 3 | W18: 45 | X18: 12 | Y18: 0 | Z18: 48 | AA18: 64 | AB18: 0 | AC18: 9 | AD18: 25 | AI18: 7 | AJ18: 20 | AK18: 11 | AM18: =+AJ18 -> 20 | AN18: =+AK18 -> 11 | AO18: =+AJ19 -> 22 | AP18: =+AK19 -> 3 | AR18: 21 | AS18: 6 | AT18: 21 | AU18: 6 | BC18: 2106 | BD18: 621 | BE18: 2106 | BF18: 621 | BG18: 0 | BH18: 0 | BI18: 0 | BJ18: 0 | BK18: 0 | BL18: 0
A19: 14 | B19: 16 | C19: Carles Rodon | J19: 0.8218602225 | K19: 184.8218602 | L19: 6 | M19: 20 | N19: 184 | O19: 164 | P19: 3 | Q19: 60 | R19: 38 | S19: 0 | T19: 20 | U19: 61 | V19: 0 | W19: 7 | X19: 21 | Y19: 0 | Z19: 29 | AA19: 44 | AB19: 3 | AC19: 68 | AD19: 0 | AI19: 4 | AJ19: 22 | AK19: 3 | AM19: =+AJ20 -> 25 | AN19: =+AK20 -> 9 | AO19: =+AJ21 -> 5 | AP19: =+AK21 -> 21 | AR19: 23 | AS19: 30 | AT19: 23 | AU19: 30 | BC19: 2330 | BD19: 3023 | BE19: 2330 | BF19: 3023 | BG19: 0 | BH19: 0 | BI19: 0 | BJ19: 0 | BK19: 0 | BL19: 0
A20: 15 | B20: 17 | C20: MªAngels Estévez | J20: 0.5761848321 | K20: 165.5761848 | L20: 6 | M20: 1 | N20: 165 | O20: 164 | P20: 0 | Q20: 7 | R20: 36 | S20: 0 | T20: 31 | U20: 52 | V20: 3 | W20: 44 | X20: 40 | Y20: 0 | Z20: 15 | AA20: 36 | AB20: 3 | AC20: 68 | AD20: 0 | AI20: 19 | AJ20: 25 | AK20: 9 | AM20: =+AJ22 -> 7 | AN20: =+AK22 -> 4 | AO20: =+AJ23 -> 19 | AP20: =+AK23 -> 24 | BC20: 0 | BD20: 0 | BE20: 0 | BF20: 0 | BG20: 0 | BH20: 0 | BI20: 0 | BJ20: 0 | BK20: 0 | BL20: 0
A21: 16 | B21: 21 | C21: Enric Vives | J21: 0.2102496556 | K21: 112.2102497 | L21: 6 | M21: -40 | N21: 112 | O21: 152 | P21: 3 | Q21: 36 | R21: 15 | S21: 0 | T21: 16 | U21: 62 | V21: 0 | W21: 7 | X21: 21 | Y21: 3 | Z21: 44 | AA21: 29 | AB21: 0 | AC21: 9 | AD21: 25 | AI21: 24 | AJ21: 5 | AK21: 21 | AM21: =+AJ24 -> 23 | AN21: =+AK24 -> 15 | AO21: =+AJ25 -> 16 | AP21: =+AK25 -> 17 | BC21: 0 | BD21: 0 | BE21: 0 | BF21: 0 | BG21: 0 | BH21: 0 | BI21: 0 | BJ21: 0 | BK21: 0 | BL21: 0
A22: 17 | B22: 19 | C22: Jordi Montiel | J22: 0.64941458 | K22: 136.6494146 | L22: 4 | M22: -32 | N22: 136 | O22: 168 | P22: 0 | Q22: 15 | R22: 25 | S22: 3 | T22: 72 | U22: 33 | V22: 0 | W22: 12 | X22: 45 | Y22: 1 | Z22: 15 | AA22: 21 | AB22: 0 | AC22: 22 | AD22: 44 | AI22: 23 | AJ22: 7 | AK22: 4 | BC22: 0 | BD22: 0 | BE22: 0 | BF22: 0 | BG22: 0 | BH22: 0 | BI22: 0 | BJ22: 0 | BK22: 0 | BL22: 0
A23: 18 | B23: 24 | C23: Joan Sendra | J23: 0.454149517 | K23: 167.4541495 | L23: 4 | M23: -48 | N23: 167 | O23: 215 | P23: 0 | Q23: 38 | R23: 60 | S23: 0 | T23: 31 | U23: 52 | V23: 1 | W23: 40 | X23: 44 | Y23: 3 | Z23: 36 | AA23: 15 | AB23: 0 | AC23: 22 | AD23: 44 | AI23: 16 | AJ23: 19 | AK23: 24 | BC23: 0 | BD23: 0 | BE23: 0 | BF23: 0 | BG23: 0 | BH23: 0 | BI23: 0 | BJ23: 0 | BK23: 0 | BL23: 0
A24: 19 | B24: 23 | C24: Isabel Cendra | J24: 0.4427664873 | K24: 97.44276649 | L24: 3 | M24: -104 | N24: 97 | O24: 201 | P24: 0 | Q24: 7 | R24: 36 | S24: 3 | T24: 52 | U24: 31 | V24: 0 | W24: 9 | X24: 22 | Y24: 0 | Z24: 29 | AA24: 44 | AB24: 0 | AC24: 0 | AD24: 68 | AI24: 17 | AJ24: 23 | AK24: 15
A25: 20 | B25: 15 | C25: Montse Nogué | J25: 0.8345697099 | K25: 103.8345697 | L25: 1 | M25: -142 | N25: 103 | O25: 245 | P25: 0 | Q25: 15 | R25: 25 | S25: 0 | T25: 33 | U25: 72 | V25: 1 | W25: 40 | X25: 44 | Y25: 0 | Z25: 15 | AA25: 36 | AB25: 0 | AC25: 0 | AD25: 68 | AI25: 15 | AJ25: 16 | AK25: 17
A26: 21 | J26: =RAND() -> 0.2479725673 | K26: =+N26+J26 -> 0.2479725673 | L26: -20 | M26: =+N26-O26 -> 0 | N26: =+Q26+T26+W26+Z26+AC26+AF26 -> 0 | O26: =+R26+U26+X26+AA26+AD26+AG26 -> 0
A27: 22 | J27: 0.6861439581 | K27: 0.6861439581 | L27: -20 | M27: 0 | N27: 0 | O27: 0
A28: 23 | J28: 0.3135509662 | K28: 0.3135509662 | L28: -20 | M28: 0 | N28: 0 | O28: 0
A29: 24 | J29: 0.04641971082 | K29: 0.04641971082 | L29: -20 | M29: 0 | N29: 0 | O29: 0
A30: 25 | J30: =RAND() -> 0.486517336 | K30: =+N30+J30 -> 0.486517336 | L30: -20 | M30: =+N30-O30 -> 0 | N30: =+Q30+T30+W30+Z30+AC30+AF30 -> 0 | O30: =+R30+U30+X30+AA30+AD30+AG30 -> 0
A31: 26 | J31: 0.006989620254 | K31: 0.006989620254 | L31: -20 | M31: 0 | N31: 0 | O31: 0
A32: 27 | J32: 0.089633488 | K32: 0.089633488 | L32: -20 | M32: 0 | N32: 0 | O32: 0
A33: 28 | J33: 0.1865379243 | K33: 0.1865379243 | L33: -20 | M33: 0 | N33: 0 | O33: 0
A34: 29 | D34: 20 | J34: 0.9881230593 | K34: 0.9881230593 | L34: -20 | M34: 0 | N34: 0 | O34: 0
A35: 30 | D35: 20 | J35: 0.9155331806 | K35: 0.9155331806 | L35: -20 | M35: 0 | N35: 0 | O35: 0
A36: 31 | D36: 20 | J36: 0.8030810258 | K36: 0.8030810258 | L36: -20 | M36: 0 | N36: 0 | O36: 0
A37: 32 | D37: 7 | J37: 0.635852654 | K37: 0.635852654 | L37: -20 | M37: 0 | N37: 0 | O37: 0
A38: 33 | D38: 5 | J38: 0.8773040447 | K38: 0.8773040447 | L38: -20 | M38: 0 | N38: 0 | O38: 0
A39: 34 | D39: 8 | J39: 0.6111832913 | K39: 0.6111832913 | L39: -20 | M39: 0 | N39: 0 | O39: 0
A40: 35 | D40: 1 | J40: 0.06067073466 | K40: 0.06067073466 | L40: -20 | M40: 0 | N40: 0 | O40: 0
C41: Descansa | L41: 32-0
M42: =SUM(M6:M40) -> 0 | Q42: =SUM(Q6:Q40) -> 546 | R42: =SUM(R6:R25) -> 546 | S42: =SUM(S6:S25) -> 30 | T42: =SUM(T6:T40) -> 768 | U42: =SUM(U6:U25) -> 768 | V42: =SUM(V6:V25) -> 32 | W42: =SUM(W6:W40) -> 440 | X42: =SUM(X6:X25) -> 440 | Y42: =SUM(Y6:Y25) -> 34 | Z42: =SUM(Z6:Z40) -> 620 | AA42: =SUM(AA6:AA25) -> 620 | AC42: =SUM(AC6:AC40) -> 496 | AD42: =SUM(AD6:AD25) -> 496 | AF42: =+Q42+T42+W42+Z42+AC42 -> 2870 | AG42: =+R42+U42+X42+AA42+AD42 -> 2870
Q43: =+Q6+Q7+Q8+Q9+Q14 -> 182 | R43: =+R6+R7+R8+R9+R14 -> 91 | T43: =+T6+T7+T9+T10+T17 -> 274 | U43: =+U6+U7+U9+U10+U17 -> 110 | W43: =+W7+W10+W11+W13+W14 -> 147 | X43: =+X7+X10+X11+X13+X14 -> 73 | Z43: =+Z6+Z9+Z10+Z12+Z13 -> 184 | AA43: =+AA6+AA9+AA10+AA12+AA13 -> 126 | AC43: =+AC6+AC8+AC11++AC13+AC19 -> 195 | AD43: =+AD6+AD8+AD11++AD13+AD19 -> 53 | AF43: =+Q43+T43+W43+Z43+AC43 -> 982 | AG43: =+R43+U43+X43+AA43+AD43 -> 453
R44: =(Q43-R43)/5 -> 18.2 | U44: =(T43-U43)/5 -> 32.8 | X44: =(W43-X43)/5 -> 14.8 | AA44: =(Z43-AA43)/5 -> 11.6 | AD44: =(AC43-AD43)/5 -> 28.4 | AG44: =+AF43-AG43 -> 529
AE45: Resultat mitjà | AF45: =+AF43/20 -> 49.1 | AG45: =+AG43/20 -> 22.65
AF46: Diferència mitjana | AG46: =+AG44/20 -> 26.45
L48: CLASSIFICACIÓ | AE48: RONDA 6
C49: Jugador | E49: R 1 | F49: R 2 | G49: R 3 | H49: R 4 | I49: R 5 | J49: R 6 | L49: Premi | M49: Diferència | N49: Favor | O49: Contra
A50: =RANK(D50,D$50:D$69,0) -> 1 | D50: =+L50*1000+M50 -> 0 | L50: =+P50+S50+V50+Y50+AB50+AE50 -> 0 | M50: =+N50-O50 -> 0 | N50: =+Q50+T50+W50+Z50+AC50+AF50 -> 0 | O50: =+R50+U50+X50+AA50+AD50+AG50 -> 0
A51: 1 | D51: =+L51*1000+M51 -> 0 | L51: 0 | M51: 0 | N51: 0 | O51: 0
A52: 1 | D52: 0 | L52: 0 | M52: 0 | N52: 0 | O52: 0
A53: 1 | D53: 0 | L53: 0 | M53: 0 | N53: 0 | O53: 0
A54: 1 | D54: 0 | L54: 0 | M54: 0 | N54: 0 | O54: 0
A55: 1 | D55: 0 | L55: 0 | M55: 0 | N55: 0 | O55: 0
A56: 1 | D56: 0 | L56: 0 | M56: 0 | N56: 0 | O56: 0
A57: 1 | D57: 0 | L57: 0 | M57: 0 | N57: 0 | O57: 0
A58: 1 | D58: 0 | L58: 0 | M58: 0 | N58: 0 | O58: 0
A59: 1 | D59: 0 | L59: 0 | M59: 0 | N59: 0 | O59: 0
A60: 1 | D60: 0 | L60: 0 | M60: 0 | N60: 0 | O60: 0
A61: 1 | D61: 0 | L61: 0 | M61: 0 | N61: 0 | O61: 0
A62: 1 | D62: 0 | L62: 0 | M62: 0 | N62: 0 | O62: 0
A63: 1 | D63: 0 | L63: 0 | M63: 0 | N63: 0 | O63: 0
A64: 1 | D64: 0 | L64: 0 | M64: 0 | N64: 0 | O64: 0
A65: 1 | D65: 0 | L65: 0 | M65: 0 | N65: 0 | O65: 0
A66: 1 | D66: 0 | L66: 0 | M66: 0 | N66: 0 | O66: 0
A67: 1 | D67: 0 | L67: 0 | M67: 0 | N67: 0 | O67: 0
A68: 1 | D68: =+L68*1000+M68 -> 0 | L68: =+P68+S68+V68+Y68+AB68+AE68 -> 0 | M68: =+N68-O68 -> 0 | N68: =+Q68+T68+W68+Z68+AC68+AF68 -> 0 | O68: =+R68+U68+X68+AA68+AD68+AG68 -> 0
A69: 1 | D69: =+L69*1000+M69 -> 0 | L69: =+P69+S69+V69+Y69+AB69+AE69 -> 0 | M69: =+N69-O69 -> 0 | N69: =+Q69+T69+W69+Z69+AC69+AF69 -> 0 | O69: =+R69+U69+X69+AA69+AD69+AG69 -> 0

Sheet Resultats
A1: PARTIDES ST MAURE'18
A3: Taula | B3: Ronda | C3: EQUIPS | G3: Local | H3: Visitant | I3: Resultat
A4: 1 | B4: 1 | C4: 16 | D4: 1 | E4: 3 | F4: 24 | I4: 60-38
A5: 2 | B5: 1 | C5: 23 | D5: 17 | E5: 9 | F5: 11 | I5: 7-36
A6: 3 | B6: 1 | C6: 19 | D6: 15 | E6: 12 | F6: 22 | I6: 15-25
A7: 4 | B7: 1 | C7: 21 | D7: 2 | E7: 10 | F7: 7 | I7: 36-15
A8: 5 | B8: 1 | C8: 4 | D8: 5 | E8: 20 | F8: 25 | I8: 16-25
A9: 1 | B9: 2 | C9: 11 | D9: 1 | E9: 9 | F9: 16 | I9: 61-20
A10: 2 | B10: 2 | C10: 21 | D10: 12 | E10: 2 | F10: 22 | I10: 16-62
A11: 3 | B11: 2 | C11: 25 | D11: 4 | E11: 20 | F11: 5 | I11: 10-27
A12: 4 | B12: 2 | C12: 19 | D12: 10 | E12: 15 | F12: 7 | I12: 72-33
A13: 5 | B13: 2 | C13: 3 | D13: 23 | E13: 24 | F13: 17 | I13: 52-31
A14: 1 | B14: 3 | C14: 11 | D14: 2 | E14: 1 | F14: 22 | I14: 15-5
A15: 2 | B15: 3 | C15: 20 | D15: 19 | E15: 5 | F15: 10 | I15: 12-45
A16: 3 | B16: 3 | C16: 3 | D16: 25 | E16: 23 | F16: 9 | I16: 22-9
A17: 4 | B17: 3 | C17: 16 | D17: 21 | E17: 12 | F17: 4 | I17: 7-21
A18: 5 | B18: 3 | C18: 24 | D18: 15 | E18: 17 | F18: 7 | I18: 40-44
A19: 1 | B19: 4 | C19: 11 | D19: 5 | E19: 2 | F19: 1 | I19: 48-64
A20: 2 | B20: 4 | C20: 10 | D20: 3 | E20: 22 | F20: 25 | I20: 19-19
A21: 3 | B21: 4 | C21: 20 | D21: 12 | E21: 4 | F21: 19 | I21: 21-15
A22: 4 | B22: 4 | C22: 23 | D22: 16 | E22: 9 | F22: 21 | I22: 29-44
A23: 5 | B23: 4 | C23: 17 | D23: 15 | E23: 7 | F23: 24 | I23: 15-36
A24: 1 | B24: 5 | C24: 2 | D24: 12 | E24: 1 | F24: 10 | I24: 14-38
A25: 2 | B25: 5 | C25: 20 | D25: 11 | E25: 22 | F25: 3 | I25: 20-8
A26: 3 | B26: 5 | C26: 25 | D26: 9 | E26: 5 | F26: 21 | I26: 25-9
A27: 4 | B27: 5 | C27: 7 | D27: 4 | E27: 19 | F27: 24 | I27: 44-22
A28: 5 | B28: 5 | C28: 23 | D28: 15 | E28: 16 | F28: 17 | I28: 0-68
A29: 1 | B29: Final | C29: 1 | D29: 2 | E29: 11 | F29: 20 | I29: 46-23
XFD32: =SUM(A32:XFC32) -> 0
XFD33: =SUM(A33:XFC33) -> 0

Sheet Inscripcions
A2: SOPAR BOTIFARRA | E2: CAMPIONAT BOTIFARRA
B5: PARTICIPANTS | F5: PARTICIPANTS | J5: PARTICIPANTS
A7: 1 | D7: x | E7: 19 | F7: Jordi Montiel | H7: x | I7: 23 | J7: Isabel Cendra
A8: 2 | D8: x | E8: 11 | F8: Josefina Bacardit | H8: x | I8: =+I7+1 -> 24 | J8: Joan Sendra
A9: 3 | D9: x | E9: 9 | F9: Satur Cid | I9: =+I8+1 -> 25 | J9: Manel Vilavecchia
A10: 4 | E10: 20 | F10: Fina Castells | I10: 7 | J10: Marc Vidal
A11: 5 | E11: 15 | F11: Montserrat Nogué | I11: 25
A12: 6 | D12: x | E12: 2 | F12: Jaume Llobet | I12: 26
A13: 7 | D13: x | E13: 17 | F13: Mª Àngels Estévez | I13: 27
A14: 8 | D14: x | E14: 21 | F14: Enric Vives | I14: 28
A15: 9 | D15: x | E15: 3 | F15: Núria Roca | I15: 29
A16: 10 | D16: x | E16: 1 | F16: Jordi Marzà | I16: 30
A17: 11 | D17: x | E17: 16 | F17: Carles Rodon | I17: 31
A18: 12 | D18: x | E18: 12 | F18: Joan Carles Conesa | I18: 32
A19: 13 | D19: x | E19: 5 | F19: Josep Mª Grau | I19: 33
A20: 14 | D20: x | E20: 10 | F20: Mariajo Nevado | I20: 34
A21: 15 | D21: x | E21: 22 | F21: Manel Pérez | I21: 35
A22: 16 | D22: x | E22: 4 | F22: Mercè Marinel·lo | I22: 36

Sheet Taules
A1: TAULES BOTIFARRA'16
A3: Taula | B3: Ronda | C3: EQUIPS | D3: Local | E3: Visitant
